Cogmind - Beta 16.1 @@@ ROGUE MODE // 2026.03.09 @ 15:33:41 Player: GlasMayne Result: Destroyed by D-53 Grenadier with Mini Grenade Launcher Performance ------------- Evolutions (1) 500 Regions Visited (3) 600 Robots Destroyed (5) 25 Value Destroyed (150) 150 Prototype IDs (0) 0 Alien Tech Used (0) 0 Bonus (0) 0 TOTAL SCORE: 1275 Bonus ------- None Cogmind --------- Core Integrity 0/400 Matter 300/300 Energy 100/100 System Corruption 0% Temperature Cool (0) Movement Treading (160) Location -9/Mines Parts ------- > --- POWER (1) -------- (None) > --- PROPULSION (3) --- Light Treads > --- UTILITY (3) ------ Small Storage Unit Structural Scanner Targeting Computer > --- WEAPON (2) ------- (None) > --- INVENTORY (8) ---- Light Ion Engine Aluminum Leg Particle Gun Peak State ------------ > --- POWER ------------ Ion Engine > --- PROPULSION ------- Aluminum Leg Aluminum Leg Hover Unit > --- UTILITY ---------- Small Storage Unit Structural Scanner > --- WEAPON ----------- EM Pulse Gun Assault Rifle > --- INVENTORY -------- Ion Engine Light Ion Engine Light Treads Light Treads Compact Wheel Compact Wheel Hover Unit Light Assault Rifle [Rating: 8] Favorites ----------- Power Light Ion Engine Engine Light Ion Engine Propulsion Light Treads Treads Light Treads Leg Aluminum Leg Hover Unit Hover Unit Utility Small Storage Unit Device Structural Scanner Storage Small Storage Unit Processor Targeting Computer Weapon Light Assault Rifle Energy Gun EM Pulse Gun Energy Cannon Beam Cannon Ballistic Gun Light Assault Rifle Build | -11 -10 -9 -9 ------- Run | Yrd Mat Mat Min Slots Evolved 2 | . . 2 . Power . | . . . . Propulsion 1 | . . 1 . Utility 1 | . . 1 . Weapon . | . . . . Parts Attached 13 | . 3 7 3 Power 3 | . 1 1 1 Engine 3 | . 1 1 1 Core . | . . . . Reactor . | . . . . Propulsion 5 | . . 5 . Treads 2 | . . 2 . Leg . | . . . . Wheel . | . . . . Hover 3 | . . 3 . Flight . | . . . . Utility 2 | . 1 . 1 Device 1 | . 1 . . Storage . | . . . . Processor 1 | . . . 1 Hackware . | . . . . Protection . | . . . . Artifact . | . . . . Weapon 3 | . 1 1 1 Energy Gun . | . . . . Energy Cannon 1 | . . . 1 Ballistic Gun 2 | . 1 1 . Ballistic Cannon . | . . . . Launcher . | . . . . Special Weapon . | . . . . Impact Weapon . | . . . . Slashing Weapon . | . . . . Piercing Weapon . | . . . . Special Melee Weapon . | . . . . Unidentified Prototypes . | . . . . Parts Lost 11 | . . 7 4 Power 3 | . . 2 1 Propulsion 4 | . . 3 1 Utility . | . . . . Weapon 4 | . . 2 2 Highest Loss Streak 7 | . . 7 4 To Critical Strikes . | . . . . Average Backups 3 | . 6 4 1 Power 1 | . 1 1 . Propulsion 2 | . 4 2 . Utility . | . . . . Weapon . | . 1 . . Tool/Special . | . . . . Unused Backups 7 | . . 4 3 Power 1 | . . . 1 Propulsion 5 | . . 4 1 Utility . | . . . . Weapon 1 | . . . 1 Tool/Special . | . . . . Average Slot Usage (%) 81 | . 98 77 74 Engine 10 | . 14 8 11 Treads 12 | . . 4 22 Leg 8 | . 28 5 . Hover 4 | . . 16 . Device 11 | . 12 11 11 Storage 11 | . 14 11 11 Processor 2 | . . . 4 Energy Gun 5 | . 14 7 . Energy Cannon 2 | . . . 4 Ballistic Gun 12 | . 14 13 10 Peak Build Rating 8 | . 7 8 8 Average Rating 6 | . 6 7 6 On Entrance 6 | 6 6 7 5 Avg Prop Armor Cover (%) 4 | . . 4 . Naked Turns . | . . . . Heaviest Build 15 | 13 15 15 13 Greatest Support 40 | 20 20 40 40 Greatest Overweight (x) 2 | . . 2 . Average Overweight (x) . | . . . . Largest Inventory Capacity 8 | . 8 8 8 Average Capacity 8 | . 8 8 8 Most Carried 8 | . 8 8 3 Average Carried 3 | . 6 4 1 Final Capacity 8 | 8 8 8 8 Final Carried 8 | 6 8 1 3 Class Distribution -------------------- 100% | Mutant Dominant Class ---------------- Mutant | -10/Materials Mutant | -9/Materials Mutant | -9/Mines Resources | -11 -10 -9 -9 ----------- Run | Yrd Mat Mat Min Matter Collected 331 | 200 42 . 89 Remotely . | . . . . Salvage Created 172 | . 89 . 83 Parts 11 | . 5 . 6 Haulers Intercepted . | . . . . Recyclers Shooed . | . . . . Parts Field Recycled . | . . . . Retrieved Matter . | . . . . Parts Self-Destructed . | . . . . Prevented . | . . . . Parts Restored . | . . . . Kills | -11 -10 -9 -9 ------- Run | Yrd Mat Mat Min Combat Hostiles Destroyed 4 | . 2 . 2 Melee 1 | . . . 1 Guns 3 | . 2 . 1 Classes Destroyed 2 | . 1 . 1 Worker 1 | . . . 1 Grunt 4 | . 2 . 2 Best Kill Streak 2 | . 2 . 2 Combat Bots Only 2 | . 2 . 2 Max Kills in Single Turn 1 | . 1 . 1 Gunslinging . | . . . . Exploded . | . . . . Melee 1 | . . . 1 Uniques/NPCs Destroyed . | . . . . Combat | -11 -10 -9 -9 -------- Run | Yrd Mat Mat Min Hostile Shots Fired 116 | . 15 76 25 Missed 39 | . 3 31 5 Hits 77 | . 12 45 20 Projectile 77 | . 12 45 20 AOE 10 | . . . 10 Critical Strikes 3 | . . 3 . Damage Taken 1300 | . 113 621 566 Core 427 | . 9 226 192 Absorbed by Shields . | . . . . Core Remaining (%) 98 | 100 96 . . Volleys Fired 24 | . 4 12 8 Largest 2 | . 2 2 1 Hottest 60 | . 60 60 20 Shots Fired 36 | . 8 20 8 Gun 36 | . 8 20 8 Cannon . | . . . . Launcher . | . . . . Special . | . . . . Kinetic 27 | . 4 15 8 Thermal . | . . . . Explosive . | . . . . Electromagnetic 9 | . 4 5 . Robot Hit Streak 9 | . 6 9 7 Robot Miss Streak 3 | . . 3 1 Penetration Max . | . . . . Secondary Targets . | . . . . Shots Hit Robots 25 | . 6 12 7 Core Hits 7 | . 3 1 3 Critical Kills . | . . . . Critical Parts Destroyed . | . . . . Critical Strikes . | . . . . Melee Attacks . | . . . . Impact . | . . . . Slashing . | . . . . Piercing . | . . . . Sneak Attacks . | . . . . Combat Hostiles . | . . . . Follow-up Attacks . | . . . . Damage Inflicted 295 | . 80 142 73 Guns 271 | . 80 136 55 Cannons . | . . . . Explosions . | . . . . Melee . | . . . . Ramming 24 | . . 6 18 Kinetic 164 | . 25 84 55 Thermal . | . . . . Explosive . | . . . . Electromagnetic 107 | . 55 52 . Impact . | . . . . Slashing . | . . . . Piercing . | . . . . Highest Corruption . | . . . . Average Corruption . | . . . . Corruption Purged . | . . . . Corruption Blocked . | . . . . Overload Shots . | . . . . Overflow Damage . | . . . . Projectiles . | . . . . Explosions . | . . . . Melee . | . . . . Knockbacks . | . . . . Impact . | . . . . Kinetic . | . . . . Secondary . | . . . . Self-Inflicted Damage . | . . . . Shots . | . . . . Rammed 8 | . . 5 3 Targets Rammed 9 | . . 5 4 Kicked . | . . . . Crushed 1 | . . . 1 Highest Temperature 77 | . 24 77 3 Average Temperature 29 | . 16 40 3 Received Heat Transfer 453 | . 36 378 39 Siege Activations . | . . . . Martial Activations . | . . . . Shielding Activations . | . . . . Robots Disrupted . | . . . . Combat Hostiles . | . . . . Robots Corrupted . | . . . . Combat Hostiles . | . . . . Parts Fried . | . . . . Impact Corruptions . | . . . . Robots Melted . | . . . . Combat Hostiles . | . . . . Parts Melted . | . . . . Heat Transferred . | . . . . Parts Sabotaged . | . . . . Parts Stolen . | . . . . Parts Stripped . | . . . . Power Chain Reactions . | . . . . Alert | -11 -10 -9 -9 ------- Run | Yrd Mat Mat Min Maximum Alert Level . | . . . . Low Security (%) 100 | . 100 100 100 Level 1 . | . . . . Level 2 . | . . . . Level 3 . | . . . . Level 4 . | . . . . Level 5 . | . . . . High Security . | . . . . Max Security . | . . . . Peak Influence 60 | . 50 60 50 Initial 8 | . . 8 . Average 8 | . 10 9 7 Influence Increases 204 | . 50 99 55 Destroy 0b10 Robot/C 80 | . 40 . 40 Destroy 0b10 Robot/NC 5 | . . . 5 Destroy Leader 20 | . 10 . 10 Successful Hack 9 | . . 9 . Lose Combat Pursuer 90 | . . 90 . Influence Decreases 204 | . 30 119 55 Entered New Map 12 | . . 12 . Time Decay 127 | . 30 42 55 Lost Part 65 | . . 65 . Squads Dispatched 3 | . 1 2 . Investigation 1 | . 1 . . Extermination . | . . . . Reinforcement 2 | . . 2 . Assault . | . . . . Garrison . | . . . . Intercept . | . . . . Searches Triggered . | . . . . Construction Impeded 1 | . . 1 . Haulers Reinforced . | . . . . Active Scanning Responses . | . . . . Cargo Convoy Interrupts . | . . . . Stealth | -11 -10 -9 -9 --------- Run | Yrd Mat Mat Min Distress Signals 3 | . . 3 . Communications Jammed . | . . . . Distress Signals . | . . . . Times Spotted 44 | . 6 20 18 Peak Tracking Total 20 | . 3 11 20 Tactical Retreats 5 | . . 3 2 Traps | -11 -10 -9 -9 ------- Run | Yrd Mat Mat Min Traps Triggered 1 | . 1 . . Indirectly . | . . . . Trap Hack Attempts . | . . . . Triggered . | . . . . Disarmed . | . . . . Reprogrammed . | . . . . Reused . | . . . . Traps Extracted . | . . . . Installed . | . . . . Triggered . | . . . . Machines | -11 -10 -9 -9 ---------- Run | Yrd Mat Mat Min Machines Disabled . | . . . . Max in Single Turn . | . . . . Machines Repaired . | . . . . Machines Dismantled . | . . . . Machines Sabotaged . | . . . . Overloaded Fab Kills . | . . . . Hacking | -11 -10 -9 -9 --------- Run | Yrd Mat Mat Min Machines Accessed 1 | . . 1 . Terminals 1 | . . 1 . Fabricators . | . . . . Repair Stations . | . . . . Recycling Units . | . . . . Scanalyzers . | . . . . Garrison Access . | . . . . Total Hacks 5 | . . 5 . Successful 2 | . . 2 . Failed 3 | . . 3 . Catastrophic . | . . . . Database Lockouts . | . . . . Manual . | . . . . Terminals 5 | . . 5 . Fabricators . | . . . . Repair Stations . | . . . . Recycling Units . | . . . . Scanalyzers . | . . . . Garrison Access . | . . . . Terminal Hacks 2 | . . 2 . Alert Level 1 | . . 1 . Registered Prototypes 1 | . . 1 . Fabricator Hacks . | . . . . Repair Station Hacks . | . . . . Recycling Unit Hacks . | . . . . Scanalyzer . | . . . . Garrison Access Hacks . | . . . . Unauthorized Hacks . | . . . . Terminals . | . . . . Fabricators . | . . . . Repair Stations . | . . . . Recycling Units . | . . . . Scanalyzers . | . . . . Garrison Access . | . . . . Data Cores Recovered . | . . . . Used . | . . . . Hacking Detections . | . . . . Full Trace Events . | . . . . Feedback Events . | . . . . Feedback Blocked . | . . . . Robot Schematics Acquired . | . . . . Robots Built . | . . . . Authchips . | . . . . Time . | . . . . Total Robot Build Rating . | . . . . Part Schematics Acquired . | . . . . Parts Built . | . . . . Authchips . | . . . . Time . | . . . . Total Part Build Rating . | . . . . Part Studies Acquired . | . . . . Parts Repaired . | . . . . Time . | . . . . Parts Recycled . | . . . . Recycled Matter . | . . . . Retrieved Matter . | . . . . Retrieved Components . | . . . . Parts Scanalyzed . | . . . . Part Schematics Acquired . | . . . . Parts Damaged . | . . . . Bothacking | -11 -10 -9 -9 ------------ Run | Yrd Mat Mat Min Used RIF Installer . | . . . . Robots Hacked . | . . . . Non-combat . | . . . . Combat . | . . . . Robot Hacks Applied . | . . . . Relay Couplers Released . | . . . . Fabnet Peak Effective % . | . . . . Robots Rewired . | . . . . Allies Hacked . | . . . . Hacks Repelled . | . . . . Allies | -11 -10 -9 -9 -------- Run | Yrd Mat Mat Min Total Allies . | . . . . Largest Group . | . . . . Highest-Rated Group . | . . . . Highest-Rated Ally . | . . . . Total Orders . | . . . . Ally Attacks . | . . . . Total Damage . | . . . . Kills . | . . . . Allies Corrupted . | . . . . Allies Melted . | . . . . Intel | -11 -10 -9 -9 ------- Run | Yrd Mat Mat Min Active Infowar (turns) 733 | . 161 182 390 Structural 733 | . 161 182 390 Robot Analysis Total . | . . . . Derelict Logs Recovered . | . . . . Drone Launches . | . . . . Drone Recoveries . | . . . . Exploration | -11 -10 -9 -9 ------------- Run | Yrd Mat Mat Min Turns Passed 748 | . 176 182 390 Spaces Moved 476 | 1 128 121 226 Core . | . . . . Treads 250 | . . 24 226 Legs 158 | 1 128 29 . Wheels . | . . . . Hover 68 | . . 68 . Flight . | . . . . Fastest Speed 52 | 120 120 52 160 Average Speed 131 | 120 120 90 160 Slowest Speed 200 | 120 120 200 160 Overloaded Moves . | . . . . Propulsion Burnouts . | . . . . Robots Hopped . | . . . . Potential Cave-ins . | . . . . Cave-ins Triggered . | . . . . Exploration Rate (%) 24 | 2 26 27 42 Regions Visited 3 Branch Regions 1 Pre-discovered Areas . | . . . . Known Exits Taken . | . . . . Unknown Exits Taken 3 | 1 1 1 . Scrap Searched 2 | . . . 2 Spaces Dug . | . . . . Terrain Destroyed . | . . . . Melee . | . . . . Projectile . | . . . . AOE . | . . . . Terrain Rammed . | . . . . Walls Destroyed . | . . . . Machines Disabled . | . . . . Actions | -11 -10 -9 -9 --------- Run | Yrd Mat Mat Min Total 557 | . 141 171 245 Wait 31 | . 6 24 1 Move 473 | . 127 120 226 Hop . | . . . . Pick Up 4 | . 1 . 3 Fast Attach 4 | . 1 1 2 Attach 5 | . . 4 1 Detach . | . . . . Swap 4 | . 2 2 . Drop 3 | . . 3 . Fire 24 | . 4 12 8 Melee . | . . . . Ram . | . . . . Kick . | . . . . Crush 9 | . . 5 4 Escape Stasis . | . . . . Rewire . | . . . . Trap . | . . . . Miscellaneous . | . . . . Route ------- -11/Scrapyard -10/Materials -9/Materials -9/Mines (discovered 2 exits: [*Mat x2]) History --------- Turn | Location | Event 1 | -11/Scrapyard | Discovered new exit (range 0) 1 | -11/Scrapyard | Entered Materials 173 | -10/Materials | Discovered new exit (range 5) 177 | -10/Materials | Entered another Materials area 177 | -9/Materials | Evolved 2 slots: Propulsion x1, Utility x1 335 | -9/Materials | Build established: Mutant 335 | -9/Materials | Discovered new exit (range 16) 354 | -9/Materials | Core integrity fell below 50% 359 | -9/Materials | Entered Mines 362 | -9/Mines | Met a Derelict bent on vengeance 378 | -9/Mines | Lost 7 parts (2p3n2w) 399 | -9/Mines | Discovered new exit (range 10) 603 | -9/Mines | Discovered new exit (range 8) 693 | -9/Mines | Assembled infested the area 743 | -9/Mines | Core integrity fell below 20% 749 | -9/Mines | Destroyed by D-53 Grenadier with Mini Grenade Launcher Last Messages --------------- [Achievement: Hunted] 00703_ T-07 Excavator is excavating. 00706_ R-06 Scavenger collects Heat Sink. 00709_ R-06 Scavenger collects Imp. Heat Sink. [Achievement: Slippery One] 00724_ R-06 Scavenger destroyed. 00725_ K-01 Serf collects debris. 00735_ The unstable cave ceiling collapses. 00735_ as-70192 destroyed. 00735_ as-01696 destroyed. 00735_ as-85286 destroyed. 00735_ Lgt. Assault Rifle destroyed. 00735_ K-01 Serf destroyed. 00737_ The unstable cave ceiling collapses. 00737_ as-00119 destroyed. 00741_ Lgt. Ion Engine destroyed. 00741_ Beam Cannon destroyed. 00743_ The unstable cave ceiling collapses. 00743_ Lgt. Treads destroyed. 00746_ The unstable cave ceiling collapses. Map ----- +----------------------------------------------------+ | "" ##???### ######## ##?? | | "" ########### ######## ######### ##?? | | ############### ####### < #### ##?? | | ######???## ###### """ ##?? | | #???????## ####### """ ##?? | | ????????## ######## ####??## """ ##?? | | ???????## ###############???## ##?? | | ???????## ??????########????### ########? | | ??????????????????????????### ########? | | ##???????????????????????????## ##? | | ######???????????????????????????## ##### ##? | | #######???????????????????????????## ##### ##? | | ###????????????????????????????????## ##?## ##? | | ##?????????????????????????????????## ##?## ##? | | ???????????????????????????????????## ##### ### | | ??????????????????????????????????????## #### ## | | ??????????????????????????????????????## ##### # | | ?????????????????????????????###########!###### # | | ?????????????????????????????########### ##?### ## | | ?????????????????????????????## %= % %##???#### | | ?????????????????????#####???## ###########???#### | | ??????????????????############# ###########??????? | | ?????????????????###### ####### ##???????????????? | | ???????????????##### #### ##???????????????? | | ??????????????##### # ###??????????????? | | ?????????????#### @ t###??????????????? | | ????????????#### ##??????????????? | | ??????????##### k ##??????????????? | | ??????????#### # ## < ##??????????????? | | ??????????### d ### ###??????????????? | | ??????????## =% d #########??????????????? | | ??????????## = #########???????????????? | | ???????##### # ####?????????????????????? | | ???????##### ########??????????????????????? | | ???????## ##########?????????????????????? | | ???????## ## ##########????????????????????? | | ???????## ### ### ####???????????????????? | | ???????## ### #% ####??????????????????? | | ????????? ## % *=! ###??????????????????? | | ????????? # ##%% ##??????????????????? | | ?????????## ## ##??????????????????? | | ?????????## #### ###??????????????????? | | ?????????### #### ####????? ##??????????? | | ?????????#### ##### #####?????? ##??????????? | | ??????????#### ####### ####????? #####???????? | | ???????????#######?#### ######? #######?????? | | ????????????#####???### ##### ##?????? | | ?????????????????????## ##?????? | | ?????????????????????##### ## ##? ##?????? | | ?????????????????????##### ### ###?????????? | +----------------------------------------------------+ Best States ------------- Heat Dissipation 28 Energy Generation 10 Energy Capacity 250 Matter Stores 300 Matter Capacity 300 Sight Range 16 Terrain Scan Density 10 Evasion (%) 55 Targeting Accuracy 5 Recoil Reduction 2 Item Schematics ----------------- None Robot Schematics ------------------ None Fabricated ------------ Nothing Repaired ---------- Nothing Studied --------- None Alien Tech Used ----------------- None Achievements -------------- Hunted Slippery One Challenges ------------ None Game ------ Seed BladePartitionShredder Manual? 0 Play Time 00:06:52 Cumulative 30.4 hours Start 2026.03.09 @ 15:28:30 End 2026.03.09 @ 15:33:41 Sessions 1 Manual Loads 0 Difficulty Rogue Special Mode None Game No. 54 Rogue 54 Adventurer 0 Explorer 0 Win Type - Total 0 Types 0/0/0/0/0/0/0/0/0/0 Lore% 11 Gallery% 28 Achievement% 20 Wizard Run 0 Options --------- Layout 2 ASCII 0 Keyboard 1 Movement Numpad Keybinds 0 Fullscreen 1 Font 24/Smallcaps Map View 50x44 Zoom Use 0% Tactical HUD 1 Map Filters NONE Filters NONE Steam 1 RUN: ad47c606-d41d-49ff-9676-c11839ff7c5f